Workbook

Sheet README
A1: To make this exercise work:
A2: 1. | B2: You must "Enable Macros" when prompted
B3: If you selected "Disable Macros", close MS Excel and start over.
B4: If you were not prompted, please go to the menu bar (above) and select:
B5: Tools->Options…
B6: Select the "Security Tab"
B7: Press the "Macro Security..." Button
B8: Select "Medium" and Press "OK" (twice)
A10: Exercise 1:
A11: Test whether randomization works *and* the benefit of larger sample sizes
B12: Select the tab "Randomize".
B13: Enter different sample sizes.
B14: Press Enter.
B15: And Click the "Randomize" button.

Sheet Randomize
B2: Sample Size | C2: 10
B29: ="Average % Difference Control vs. Expected: " & ROUND(100*AVERAGE(chartdata!$I$23:$I$27),2) & "%" -> Average % Difference Control vs. Expected: 45.04%
B30: ="Average % Difference Control vs. Expected: " & ROUND(100*AVERAGE(chartdata!$J$23:$J$27),2) & "%" -> Average % Difference Control vs. Expected: 96.99%

Sheet control
A1: vote02 | B1: Treatment | C1: Reached | D1: Age of Individual | E1: Household Size | F1: sex | G1: age | H1: readlevel_base | I1: readlevel_mid | J1: fbt_base | K1: income | O1: TreatmentExample
A2: 0 | B2: 0 | C2: 0 | D2: 63 | E2: 2 | F2: 1 | G2: 11 | H2: 4 | I2: 1 | J2: 9.97 | K2: 90.99 | O2: 0
A3: 1 | B3: 0 | C3: 0 | D3: 41 | E3: 2 | F3: 0 | G3: 8 | H3: 0 | I3: 4 | J3: 0.22 | K3: 140.77 | O3: 0
A4: 1 | B4: 0 | C4: 0 | D4: 47 | E4: 2 | F4: 1 | G4: 11 | H4: 3 | I4: 3 | J4: 10.09 | K4: 178.16 | O4: 0
A5: 0 | B5: 0 | C5: 0 | D5: 52 | E5: 1 | F5: 1 | G5: 10 | H5: 1 | I5: 0 | J5: 9.8 | K5: 221.43 | O5: 0
A6: 1 | B6: 0 | C6: 0 | D6: 75 | E6: 1 | F6: 0 | G6: 9 | H6: 3 | I6: 4 | J6: 10.04 | K6: 207.15 | O6: 1
A7: 0 | B7: 0 | C7: 0 | D7: 68 | E7: 2 | F7: 1 | G7: 10 | H7: 3 | I7: 3 | J7: 9.3 | K7: 138.84 | O7: 1
A8: 1 | B8: 0 | C8: 0 | D8: 49 | E8: 2 | F8: 0 | G8: 11 | H8: 0 | I8: 4 | J8: 9.47 | K8: 63.67 | O8: 1
A9: 0 | B9: 0 | C9: 0 | D9: 63 | E9: 2 | F9: 0 | G9: 9 | H9: 3 | I9: 4 | J9: 9.83 | K9: 107.35 | O9: 1
A10: 1 | B10: 0 | C10: 0 | D10: 85 | E10: 1 | F10: 1 | G10: 15 | H10: 1 | I10: 4 | J10: 37.4 | K10: 48.43 | O10: 1
A11: 0 | B11: 0 | C11: 0 | D11: 30 | E11: 2 | F11: 0 | G11: 4 | H11: 4 | I11: 4 | J11: 2.2 | K11: 163.33 | O11: 1
A12: 0 | B12: 0 | C12: 0 | D12: 51 | E12: 1 | F12: 1 | G12: 13 | H12: 1 | I12: 1 | J12: 0 | K12: 277.48 | O12: 0.001006245613
A13: 1 | B13: 0 | C13: 0 | D13: 68 | E13: 2 | F13: 0 | G13: 8 | H13: 0 | I13: 4 | J13: 9.7 | K13: 44.91 | O13: 0.001020371914
A14: 1 | B14: 0 | C14: 0 | D14: 35 | E14: 1 | F14: 0 | G14: 9 | H14: 3 | I14: 4 | J14: 0 | K14: 569.1 | O14: 0.001040875912
A15: 1 | B15: 0 | C15: 0 | D15: 68 | E15: 1 | F15: 0 | G15: 12 | H15: 2 | I15: 2 | J15: 9.72 | K15: 257.19 | O15: 0.001052379608
A16: 0 | B16: 0 | C16: 0 | D16: 43 | E16: 1 | F16: 0 | G16: 12 | H16: 4 | I16: 0 | J16: 29.58 | K16: 112.85 | O16: 0.001074552536
A17: 0 | B17: 0 | C17: 0 | D17: 44 | E17: 1 | F17: 0 | G17: 13 | H17: 4 | I17: 1 | J17: 64.48 | K17: 256.33 | O17: 0.001095533371
A18: 0 | B18: 0 | C18: 0 | D18: 51 | E18: 1 | F18: 0 | G18: 12 | H18: 4 | I18: 1 | J18: 9.15 | K18: 256.4 | O18: 0.001114249229
A19: 0 | B19: 0 | C19: 0 | D19: 30 | E19: 1 | F19: 0 | G19: 15 | H19: 1 | I19: 1 | J19: 0 | K19: 252.82 | O19: 0.001371920109
A20: 1 | B20: 0 | C20: 0 | D20: 49 | E20: 2 | F20: 0 | G20: 11 | H20: 4 | I20: 4 | J20: 9.79 | K20: 261.98 | O20: 0.001389741898
A21: 1 | B21: 0 | C21: 0 | D21: 41 | E21: 2 | F21: 1 | G21: 11 | H21: 4 | I21: 4 | J21: 39.89 | K21: 115.82 | O21: 0.001510500908
A22: 1 | B22: 0 | C22: 0 | D22: 84 | E22: 1 | F22: 0 | G22: 8 | H22: 4 | I22: 1 | J22: 2.03 | K22: 234.66 | O22: 0.001733601093
A23: 0 | B23: 0 | C23: 0 | D23: 34 | E23: 1 | F23: 1 | G23: 10 | H23: 1 | I23: 1 | J23: 0 | K23: 132.72 | O23: 0.00174087286
A24: 0 | B24: 0 | C24: 0 | D24: 38 | E24: 1 | F24: 0 | G24: 8 | H24: 1 | I24: 4 | J24: 9.7 | K24: 154.97 | O24: 0.00183147192
A25: 0 | B25: 0 | C25: 0 | D25: 50 | E25: 2 | F25: 1 | G25: 13 | H25: 1 | I25: 1 | J25: 0.59 | K25: 88.4 | O25: 0.001843214035
A26: 0 | B26: 0 | C26: 0 | D26: 46 | E26: 1 | F26: 1 | G26: 12 | H26: 2 | I26: 2 | J26: 9.35 | K26: 257.58 | O26: 0.001890897751
A27: 0 | B27: 0 | C27: 0 | D27: 20 | E27: 1 | F27: 0 | G27: 15 | H27: 1 | I27: 0 | J27: 9.43 | K27: 682.64 | O27: 0.001939475536
A28: 0 | B28: 0 | C28: 0 | D28: 23 | E28: 1 | F28: 1 | G28: 9 | H28: 0 | I28: 1 | J28: 0 | K28: 67.42 | O28: 0.00198340416
A29: 0 | B29: 0 | C29: 0 | D29: 43 | E29: 1 | F29: 1 | G29: 11 | H29: 1 | I29: 0 | J29: 10.11 | K29: 210.52 | O29: 0.002005696297
A30: 0 | B30: 0 | C30: 0 | D30: 37 | E30: 2 | F30: 1 | G30: 15 | H30: 3 | I30: 4 | J30: 9.56 | K30: 253.44 | O30: 0.002172827721
A31: 0 | B31: 0 | C31: 0 | D31: 86 | E31: 1 | F31: 1 | G31: 8 | H31: 4 | I31: 4 | J31: 21.44 | K31: 122.25 | O31: 0.002213597298
A32: 1 | B32: 0 | C32: 0 | D32: 50 | E32: 1 | F32: 0 | G32: 12 | H32: 3 | I32: 2 | J32: 9.27 | K32: 211.18 | O32: 0.002267241478
A33: 1 | B33: 0 | C33: 0 | D33: 36 | E33: 2 | F33: 1 | G33: 9 | H33: 4 | I33: 4 | J33: 9.89 | K33: 255.49 | O33: 0.002383649349
A34: 1 | B34: 0 | C34: 0 | D34: 68 | E34: 1 | F34: 0 | G34: 13 | H34: 4 | I34: 2 | J34: 13.16 | K34: 250.02 | O34: 0.002557873726
A35: 0 | B35: 0 | C35: 0 | D35: 19 | E35: 1 | F35: 1 | G35: 10 | H35: 0 | I35: 3 | J35: 9.25 | K35: 161.84 | O35: 0.002693831921
A36: 1 | B36: 0 | C36: 0 | D36: 95 | E36: 1 | F36: 1 | G36: 9 | H36: 4 | I36: 4 | J36: 9.28 | K36: 255 | O36: 0.002730071545
A37: 1 | B37: 0 | C37: 0 | D37: 34 | E37: 2 | F37: 1 | G37: 11 | H37: 0 | I37: 4 | J37: 0 | K37: 362.04 | O37: 0.002771735191
A38: 1 | B38: 0 | C38: 0 | D38: 54 | E38: 2 | F38: 1 | G38: 13 | H38: 0 | I38: 0 | J38: 4.02 | K38: 106.34 | O38: 0.00278544426
A39: 0 | B39: 0 | C39: 0 | D39: 28 | E39: 1 | F39: 0 | G39: 13 | H39: 4 | I39: 4 | J39: 0 | K39: 249.8 | O39: 0.003099799156
A40: 0 | B40: 0 | C40: 0 | D40: 29 | E40: 1 | F40: 0 | G40: 8 | H40: 0 | I40: 1 | J40: 23.08 | K40: 622.95 | O40: 0.003113329411
A41: 1 | B41: 0 | C41: 0 | D41: 43 | E41: 2 | F41: 0 | G41: 13 | H41: 4 | I41: 4 | J41: 9.23 | K41: 178.6 | O41: 0.00327116251
A42: 1 | B42: 0 | C42: 0 | D42: 43 | E42: 1 | F42: 1 | G42: 9 | H42: 0 | I42: 3 | J42: 0 | K42: 257.55 | O42: 0.003319919109
A43: 1 | B43: 0 | C43: 0 | D43: 75 | E43: 2 | F43: 1 | G43: 15 | H43: 4 | I43: 4 | J43: 0 | K43: 77.85 | O43: 0.003414154053
A44: 1 | B44: 0 | C44: 0 | D44: 45 | E44: 1 | F44: 0 | G44: 15 | H44: 4 | I44: 0 | J44: 0 | K44: 129.07 | O44: 0.003434836864
A45: 0 | B45: 0 | C45: 0 | D45: 60 | E45: 2 | F45: 1 | G45: 9 | H45: 4 | I45: 3 | J45: 9.52 | K45: 248.76 | O45: 0.003445863724
A46: 0 | B46: 0 | C46: 0 | D46: 49 | E46: 2 | F46: 1 | G46: 9 | H46: 4 | I46: 0 | J46: 0 | K46: 251.31 | O46: 0.003459751606
A47: 0 | B47: 0 | C47: 0 | D47: 30 | E47: 1 | F47: 0 | G47: 14 | H47: 4 | I47: 1 | J47: 9.74 | K47: 605.34 | O47: 0.003564119339
A48: 1 | B48: 0 | C48: 0 | D48: 58 | E48: 2 | F48: 1 | G48: 10 | H48: 4 | I48: 0 | J48: 0 | K48: 124.54 | O48: 0.003621935844
A49: 1 | B49: 0 | C49: 0 | D49: 79 | E49: 2 | F49: 0 | G49: 10 | H49: 3 | I49: 4 | J49: 3.72 | K49: 102.6 | O49: 0.003663182259
A50: 0 | B50: 0 | C50: 0 | D50: 56 | E50: 1 | F50: 0 | G50: 10 | H50: 1 | I50: 4 | J50: 30.67 | K50: 255.38 | O50: 0.003700554371
A51: 1 | B51: 0 | C51: 0 | D51: 60 | E51: 1 | F51: 1 | G51: 9 | H51: 4 | I51: 1 | J51: 10.06 | K51: 142 | O51: 0.003726422787
A52: 1 | B52: 0 | C52: 0 | D52: 86 | E52: 1 | F52: 0 | G52: 8 | H52: 2 | I52: 4 | J52: 10.01 | K52: 759.09 | O52: 0.003734886646
A53: 0 | B53: 0 | C53: 0 | D53: 75 | E53: 1 | F53: 0 | G53: 2 | H53: 2 | I53: 4 | J53: 9.92 | K53: 98.12 | O53: 0.003914535046
A54: 0 | B54: 0 | C54: 0 | D54: 75 | E54: 1 | F54: 0 | G54: 11 | H54: 4 | I54: 1 | J54: 9.61 | K54: 285.96 | O54: 0.003991484642
A55: 1 | B55: 0 | C55: 0 | D55: 49 | E55: 1 | F55: 0 | G55: 8 | H55: 0 | I55: 0 | J55: 9.6 | K55: 250.13 | O55: 0.004024088383
A56: 1 | B56: 0 | C56: 0 | D56: 87 | E56: 1 | F56: 0 | G56: 9 | H56: 1 | I56: 4 | J56: 9.61 | K56: 249.82 | O56: 0.004231154919
A57: 1 | B57: 0 | C57: 0 | D57: 45 | E57: 2 | F57: 1 | G57: 12 | H57: 3 | I57: 4 | J57: 0.47 | K57: 256.71 | O57: 0.004309892654
A58: 1 | B58: 0 | C58: 0 | D58: 41 | E58: 2 | F58: 1 | G58: 12 | H58: 1 | I58: 0 | J58: 0 | K58: 273.65 | O58: 0.004446923733
A59: 1 | B59: 0 | C59: 0 | D59: 59 | E59: 2 | F59: 1 | G59: 10 | H59: 1 | I59: 4 | J59: 0.75 | K59: 176.73 | O59: 0.004533708096
A60: 0 | B60: 0 | C60: 0 | D60: 26 | E60: 1 | F60: 1 | G60: 10 | H60: 1 | I60: 2 | J60: 0 | K60: 253.32 | O60: 0.004552900791
A61: 1 | B61: 0 | C61: 0 | D61: 49 | E61: 2 | F61: 1 | G61: 15 | H61: 4 | I61: 4 | J61: 0 | K61: 251.66 | O61: 0.004608273506
A62: 0 | B62: 0 | C62: 0 | D62: 32 | E62: 1 | F62: 0 | G62: 13 | H62: 4 | I62: 4 | J62: 9.16 | K62: 380.33 | O62: 0.004640042782
A63: 0 | B63: 0 | C63: 0 | D63: 43 | E63: 2 | F63: 0 | G63: 8 | H63: 0 | I63: 4 | J63: 9.76 | K63: 808.38 | O63: 0.004689753056
A64: 1 | B64: 0 | C64: 0 | D64: 87 | E64: 2 | F64: 1 | G64: 15 | H64: 3 | I64: 4 | J64: 9.61 | K64: 251.86 | O64: 0.00473600626
A65: 0 | B65: 0 | C65: 0 | D65: 57 | E65: 2 | F65: 1 | G65: 11 | H65: 1 | I65: 2 | J65: 17 | K65: 164.73 | O65: 0.004759311676
A66: 0 | B66: 0 | C66: 0 | D66: 46 | E66: 1 | F66: 0 | G66: 11 | H66: 4 | I66: 4 | J66: 9.24 | K66: 253.36 | O66: 0.004865586758
A67: 0 | B67: 0 | C67: 0 | D67: 72 | E67: 1 | F67: 1 | G67: 14 | H67: 0 | I67: 1 | J67: 0 | K67: 253.3 | O67: 0.004893839359
A68: 0 | B68: 0 | C68: 0 | D68: 47 | E68: 1 | F68: 0 | G68: 12 | H68: 4 | I68: 4 | J68: 9.31 | K68: 233.68 | O68: 0.005028784275
A69: 0 | B69: 0 | C69: 0 | D69: 37 | E69: 2 | F69: 0 | G69: 13 | H69: 1 | I69: 4 | J69: 9.42 | K69: 300.92 | O69: 0.005075931549
A70: 0 | B70: 0 | C70: 0 | D70: 86 | E70: 1 | F70: 0 | G70: 14 | H70: 4 | I70: 4 | J70: 9.24 | K70: 248.06 | O70: 0.005194187164
A71: 0 | B71: 0 | C71: 0 | D71: 37 | E71: 2 | F71: 0 | G71: 10 | H71: 4 | I71: 4 | J71: 9.29 | K71: 467.88 | O71: 0.005201399326
A72: 0 | B72: 0 | C72: 0 | D72: 51 | E72: 1 | F72: 0 | G72: 11 | H72: 0 | I72: 4 | J72: 0 | K72: 489.73 | O72: 0.005226612091
A73: 0 | B73: 0 | C73: 0 | D73: 68 | E73: 2 | F73: 0 | G73: 13 | H73: 3 | I73: 3 | J73: 9.88 | K73: 257.02 | O73: 0.005395770073
A74: 0 | B74: 0 | C74: 0 | D74: 21 | E74: 1 | F74: 1 | G74: 12 | H74: 0 | I74: 4 | J74: 2.27 | K74: 251.07 | O74: 0.005406200886
A75: 0 | B75: 0 | C75: 0 | D75: 46 | E75: 2 | F75: 1 | G75: 13 | H75: 2 | I75: 1 | J75: 9.94 | K75: 248.13 | O75: 0.005585551262
A76: 0 | B76: 0 | C76: 0 | D76: 50 | E76: 2 | F76: 0 | G76: 13 | H76: 4 | I76: 0 | J76: 9.16 | K76: 186.34 | O76: 0.005623042583
A77: 1 | B77: 0 | C77: 0 | D77: 59 | E77: 2 | F77: 1 | G77: 9 | H77: 4 | I77: 4 | J77: 28.53 | K77: 342.54 | O77: 0.005674660206
A78: 1 | B78: 0 | C78: 0 | D78: 59 | E78: 2 | F78: 1 | G78: 13 | H78: 4 | I78: 2 | J78: 9.87 | K78: 67.22 | O78: 0.005803287029
A79: 1 | B79: 0 | C79: 0 | D79: 64 | E79: 1 | F79: 1 | G79: 9 | H79: 4 | I79: 1 | J79: 9.14 | K79: 249.51 | O79: 0.005804538727
A80: 1 | B80: 0 | C80: 0 | D80: 79 | E80: 1 | F80: 0 | G80: 12 | H80: 0 | I80: 4 | J80: 5.56 | K80: 256.2 | O80: 0.005813241005
A81: 0 | B81: 0 | C81: 0 | D81: 23 | E81: 1 | F81: 0 | G81: 15 | H81: 2 | I81: 1 | J81: 0 | K81: 129.97 | O81: 0.005942225456
A82: 1 | B82: 0 | C82: 0 | D82: 41 | E82: 2 | F82: 1 | G82: 14 | H82: 0 | I82: 1 | J82: 0 | K82: 95.36 | O82: 0.005993008614
A83: 0 | B83: 0 | C83: 0 | D83: 35 | E83: 2 | F83: 1 | G83: 12 | H83: 4 | I83: 2 | J83: 10.87 | K83: 465.55 | O83: 0.006036400795
A84: 1 | B84: 0 | C84: 0 | D84: 31 | E84: 1 | F84: 1 | G84: 11 | H84: 4 | I84: 1 | J84: 9.37 | K84: 224.74 | O84: 0.006435155869
A85: 1 | B85: 0 | C85: 0 | D85: 89 | E85: 1 | F85: 0 | G85: 9 | H85: 0 | I85: 4 | J85: 0.82 | K85: 175.1 | O85: 0.006438434124
A86: 0 | B86: 0 | C86: 0 | D86: 28 | E86: 2 | F86: 1 | G86: 13 | H86: 4 | I86: 2 | J86: 33.91 | K86: 252.45 | O86: 0.006483733654
A87: 1 | B87: 0 | C87: 0 | D87: 69 | E87: 1 | F87: 0 | G87: 8 | H87: 1 | I87: 2 | J87: 9.7 | K87: 248.94 | O87: 0.006484925747
A88: 0 | B88: 0 | C88: 0 | D88: 44 | E88: 2 | F88: 0 | G88: 10 | H88: 0 | I88: 0 | J88: 10.13 | K88: 255.61 | O88: 0.006531655788
A89: 0 | B89: 0 | C89: 0 | D89: 67 | E89: 2 | F89: 1 | G89: 10 | H89: 4 | I89: 4 | J89: 9.71 | K89: 254.29 | O89: 0.00656157732
A90: 0 | B90: 0 | C90: 0 | D90: 31 | E90: 2 | F90: 1 | G90: 9 | H90: 4 | I90: 4 | J90: -0.33 | K90: 256.76 | O90: 0.006652295589
A91: 1 | B91: 0 | C91: 0 | D91: 66 | E91: 2 | F91: 0 | G91: 10 | H91: 4 | I91: 1 | J91: 9.46 | K91: 252.63 | O91: 0.006698966026
A92: 1 | B92: 0 | C92: 0 | D92: 34 | E92: 2 | F92: 1 | G92: 14 | H92: 4 | I92: 4 | J92: 0.39 | K92: 178.91 | O92: 0.007099688053
A93: 0 | B93: 0 | C93: 0 | D93: 47 | E93: 1 | F93: 1 | G93: 13 | H93: 0 | I93: 0 | J93: 0 | K93: 191.06 | O93: 0.007141232491
A94: 0 | B94: 0 | C94: 0 | D94: 67 | E94: 2 | F94: 0 | G94: 13 | H94: 3 | I94: 4 | J94: 10.01 | K94: 130.34 | O94: 0.007194638252
A95: 1 | B95: 0 | C95: 0 | D95: 51 | E95: 1 | F95: 1 | G95: 8 | H95: 4 | I95: 4 | J95: 28.32 | K95: 255.53 | O95: 0.007229745388
A96: 1 | B96: 0 | C96: 0 | D96: 66 | E96: 2 | F96: 0 | G96: 11 | H96: 4 | I96: 4 | J96: 0 | K96: 212.53 | O96: 0.007422745228
A97: 1 | B97: 0 | C97: 0 | D97: 73 | E97: 2 | F97: 1 | G97: 14 | H97: 4 | I97: 1 | J97: 9.22 | K97: 248.85 | O97: 0.007492482662
A98: 0 | B98: 0 | C98: 0 | D98: 51 | E98: 1 | F98: 0 | G98: 15 | H98: 4 | I98: 4 | J98: 23.76 | K98: 160.65 | O98: 0.007496774197
A99: 1 | B99: 0 | C99: 0 | D99: 70 | E99: 2 | F99: 1 | G99: 15 | H99: 3 | I99: 4 | J99: 10.04 | K99: 179.69 | O99: 0.007655084133
A100: 1 | B100: 0 | C100: 0 | D100: 40 | E100: 2 | F100: 0 | G100: 13 | H100: 4 | I100: 3 | J100: 9.5 | K100: 143.09 | O100: 0.00780069828
A101: 1 | B101: 0 | C101: 0 | D101: 73 | E101: 1 | F101: 1 | G101: 15 | H101: 0 | I101: 0 | J101: 31.6 | K101: 255.77 | O101: 0.00784611702
A102: 0 | B102: 0 | C102: 0 | D102: 33 | E102: 2 | F102: 0 | G102: 12 | H102: 3 | I102: 4 | J102: 13.84 | K102: 146.16 | O102: 0.007878482342
A103: 0 | B103: 0 | C103: 0 | D103: 55 | E103: 2 | F103: 0 | G103: 10 | H103: 0 | I103: 4 | J103: 9.41 | K103: 257.05 | O103: 0.007916390896
A104: 1 | B104: 0 | C104: 0 | D104: 75 | E104: 1 | F104: 1 | G104: 12 | H104: 4 | I104: 1 | J104: 9.25 | K104: 252.16 | O104: 0.008064091206
A105: 1 | B105: 0 | C105: 0 | D105: 36 | E105: 2 | F105: 0 | G105: 13 | H105: 1 | I105: 1 | J105: 32.34 | K105: 170.35 | O105: 0.008349835873
A106: 0 | B106: 0 | C106: 0 | D106: 43 | E106: 1 | F106: 0 | G106: 11 | H106: 1 | I106: 3 | J106: 18.5 | K106: 263.81 | O106: 0.008412480354
A107: 1 | B107: 0 | C107: 0 | D107: 39 | E107: 2 | F107: 0 | G107: 11 | H107: 4 | I107: 4 | J107: 9.96 | K107: 264.42 | O107: 0.008461117744
A108: 1 | B108: 0 | C108: 0 | D108: 34 | E108: 2 | F108: 0 | G108: 8 | H108: 4 | I108: 0 | J108: 9.97 | K108: 255.78 | O108: 0.008565187454
A109: 1 | B109: 0 | C109: 0 | D109: 66 | E109: 2 | F109: 0 | G109: 14 | H109: 3 | I109: 3 | J109: 9.81 | K109: 257.25 | O109: 0.008578658104
A110: 1 | B110: 0 | C110: 0 | D110: 41 | E110: 2 | F110: 0 | G110: 8 | H110: 3 | I110: 0 | J110: 0 | K110: 70.17 | O110: 0.008758485317
A111: 1 | B111: 0 | C111: 0 | D111: 43 | E111: 1 | F111: 1 | G111: 12 | H111: 4 | I111: 4 | J111: 10.13 | K111: 57.76 | O111: 0.00877982378
A112: 1 | B112: 0 | C112: 0 | D112: 29 | E112: 1 | F112: 1 | G112: 8 | H112: 0 | I112: 4 | J112: 0.35 | K112: 197.96 | O112: 0.008828222752
A113: 1 | B113: 0 | C113: 0 | D113: 54 | E113: 1 | F113: 0 | G113: 10 | H113: 4 | I113: 4 | J113: 0.34 | K113: 251.84 | O113: 0.008884429932
A114: 1 | B114: 0 | C114: 0 | D114: 57 | E114: 2 | F114: 0 | G114: 9 | H114: 0 | I114: 4 | J114: 9.25 | K114: 250.27 | O114: 0.009013533592
A115: 1 | B115: 0 | C115: 0 | D115: 69 | E115: 2 | F115: 1 | G115: 14 | H115: 4 | I115: 4 | J115: 10.12 | K115: 254.31 | O115: 0.009021937847
A116: 0 | B116: 0 | C116: 0 | D116: 33 | E116: 1 | F116: 0 | G116: 8 | H116: 3 | I116: 4 | J116: 9.68 | K116: 249.8 | O116: 0.009168744087
A117: 1 | B117: 0 | C117: 0 | D117: 44 | E117: 2 | F117: 0 | G117: 10 | H117: 1 | I117: 3 | J117: 9.51 | K117: 298.58 | O117: 0.009172916412
A118: 1 | B118: 0 | C118: 0 | D118: 59 | E118: 1 | F118: 0 | G118: 8 | H118: 2 | I118: 4 | J118: 9.63 | K118: 248.81 | O118: 0.009295642376
A119: 1 | B119: 0 | C119: 0 | D119: 27 | E119: 2 | F119: 0 | G119: 14 | H119: 2 | I119: 4 | J119: 9.88 | K119: 248.36 | O119: 0.009326934814
A120: 1 | B120: 0 | C120: 0 | D120: 63 | E120: 1 | F120: 1 | G120: 9 | H120: 4 | I120: 4 | J120: 0 | K120: 253.29 | O120: 0.009358286858
A121: 1 | B121: 0 | C121: 0 | D121: 77 | E121: 1 | F121: 0 | G121: 10 | H121: 1 | I121: 4 | J121: 30.78 | K121: 377.88 | O121: 0.009533762932
A122: 0 | B122: 0 | C122: 0 | D122: 25 | E122: 1 | F122: 0 | G122: 11 | H122: 4 | I122: 1 | J122: 10.1 | K122: 178.28 | O122: 0.009720087051
A123: 0 | B123: 0 | C123: 0 | D123: 23 | E123: 1 | F123: 1 | G123: 15 | H123: 1 | I123: 1 | J123: 11.95 | K123: 343.26 | O123: 0.009819686413
A124: 0 | B124: 0 | C124: 0 | D124: 90 | E124: 1 | F124: 1 | G124: 13 | H124: 4 | I124: 4 | J124: 10 | K124: 150.23 | O124: 0.009963810444
A125: 1 | B125: 0 | C125: 0 | D125: 69 | E125: 1 | F125: 0 | G125: 10 | H125: 3 | I125: 1 | J125: 14.19 | K125: 256.68 | O125: 0.01003563404
A126: 1 | B126: 0 | C126: 0 | D126: 32 | E126: 2 | F126: 1 | G126: 8 | H126: 4 | I126: 4 | J126: 9.87 | K126: 249.68 | O126: 0.01003962755
A127: 1 | B127: 0 | C127: 0 | D127: 49 | E127: 2 | F127: 0 | G127: 13 | H127: 4 | I127: 4 | J127: 9.63 | K127: 153.22 | O127: 0.01007062197
A128: 1 | B128: 0 | C128: 0 | D128: 74 | E128: 2 | F128: 0 | G128: 12 | H128: 4 | I128: 4 | J128: 0.14 | K128: 57.16 | O128: 0.01023441553
A129: 0 | B129: 0 | C129: 0 | D129: 52 | E129: 1 | F129: 1 | G129: 13 | H129: 4 | I129: 3 | J129: 0 | K129: 198.13 | O129: 0.01026415825
A130: 0 | B130: 0 | C130: 0 | D130: 48 | E130: 1 | F130: 0 | G130: 9 | H130: 0 | I130: 4 | J130: 40.59 | K130: 249.01 | O130: 0.01030302048
A131: 0 | B131: 0 | C131: 0 | D131: 51 | E131: 2 | F131: 1 | G131: 14 | H131: 3 | I131: 4 | J131: 9.17 | K131: 239.53 | O131: 0.01067012548
A132: 1 | B132: 0 | C132: 0 | D132: 73 | E132: 2 | F132: 0 | G132: 15 | H132: 2 | I132: 0 | J132: 9.3 | K132: 247.98 | O132: 0.01069688797
A133: 1 | B133: 0 | C133: 0 | D133: 54 | E133: 1 | F133: 0 | G133: 11 | H133: 3 | I133: 4 | J133: 12.75 | K133: 144.36 | O133: 0.01069968939
A134: 1 | B134: 0 | C134: 0 | D134: 39 | E134: 2 | F134: 1 | G134: 11 | H134: 1 | I134: 4 | J134: 0 | K134: 125.51 | O134: 0.01079022884
A135: 1 | B135: 0 | C135: 0 | D135: 35 | E135: 2 | F135: 0 | G135: 8 | H135: 1 | I135: 4 | J135: 1.99 | K135: 436.58 | O135: 0.0109731555
A136: 1 | B136: 0 | C136: 0 | D136: 74 | E136: 2 | F136: 0 | G136: 10 | H136: 4 | I136: 3 | J136: 9.4 | K136: 866.82 | O136: 0.01111078262
A137: 1 | B137: 0 | C137: 0 | D137: 34 | E137: 1 | F137: 1 | G137: 8 | H137: 4 | I137: 4 | J137: 43.83 | K137: 171.25 | O137: 0.01119297743
A138: 1 | B138: 0 | C138: 0 | D138: 75 | E138: 2 | F138: 0 | G138: 11 | H138: 1 | I138: 1 | J138: 0 | K138: 225.26 | O138: 0.01121944189
A139: 1 | B139: 0 | C139: 0 | D139: 30 | E139: 2 | F139: 0 | G139: 11 | H139: 0 | I139: 4 | J139: 20.54 | K139: 650.5 | O139: 0.01122957468
A140: 0 | B140: 0 | C140: 0 | D140: 33 | E140: 2 | F140: 0 | G140: 12 | H140: 1 | I140: 1 | J140: 9.87 | K140: 63.3 | O140: 0.01128071547
A141: 0 | B141: 0 | C141: 0 | D141: 36 | E141: 1 | F141: 1 | G141: 12 | H141: 4 | I141: 4 | J141: 9.24 | K141: 249.74 | O141: 0.01128816605
A142: 1 | B142: 0 | C142: 0 | D142: 58 | E142: 2 | F142: 1 | G142: 8 | H142: 1 | I142: 2 | J142: 9.86 | K142: 622.29 | O142: 0.0113041997
A143: 0 | B143: 0 | C143: 0 | D143: 53 | E143: 2 | F143: 0 | G143: 12 | H143: 4 | I143: 4 | J143: 9.66 | K143: 254.55 | O143: 0.0113043189
A144: 1 | B144: 0 | C144: 0 | D144: 45 | E144: 2 | F144: 1 | G144: 15 | H144: 1 | I144: 2 | J144: 18.68 | K144: 254.39 | O144: 0.01135790348
A145: 1 | B145: 0 | C145: 0 | D145: 58 | E145: 2 | F145: 1 | G145: 12 | H145: 4 | I145: 4 | J145: 1.15 | K145: 137.51 | O145: 0.01151102781
A146: 0 | B146: 0 | C146: 0 | D146: 64 | E146: 1 | F146: 1 | G146: 10 | H146: 4 | I146: 4 | J146: 9.79 | K146: 67.81 | O146: 0.01155841351
A147: 0 | B147: 0 | C147: 0 | D147: 34 | E147: 2 | F147: 1 | G147: 8 | H147: 1 | I147: 1 | J147: 0 | K147: 238.94 | O147: 0.01162087917
A148: 0 | B148: 0 | C148: 0 | D148: 30 | E148: 2 | F148: 1 | G148: 9 | H148: 0 | I148: 0 | J148: 1.95 | K148: 62.54 | O148: 0.01181614399
A149: 1 | B149: 0 | C149: 0 | D149: 67 | E149: 2 | F149: 0 | G149: 13 | H149: 0 | I149: 3 | J149: 0 | K149: 264.79 | O149: 0.0118380785
A150: 1 | B150: 0 | C150: 0 | D150: 44 | E150: 1 | F150: 0 | G150: 13 | H150: 0 | I150: 4 | J150: 9.48 | K150: 56.52 | O150: 0.01185625792
A151: 1 | B151: 0 | C151: 0 | D151: 58 | E151: 2 | F151: 0 | G151: 8 | H151: 1 | I151: 1 | J151: 9.71 | K151: 251.87 | O151: 0.01186782122
A152: 1 | B152: 0 | C152: 0 | D152: 87 | E152: 1 | F152: 1 | G152: 12 | H152: 0 | I152: 4 | J152: 33.26 | K152: 253.52 | O152: 0.01188278198
A153: 1 | B153: 0 | C153: 0 | D153: 75 | E153: 2 | F153: 0 | G153: 11 | H153: 3 | I153: 0 | J153: 28 | K153: 526.03 | O153: 0.01191002131
A154: 1 | B154: 0 | C154: 0 | D154: 36 | E154: 2 | F154: 0 | G154: 2 | H154: 3 | I154: 3 | J154: 9.76 | K154: 464.06 | O154: 0.01221942902
A155: 0 | B155: 0 | C155: 0 | D155: 45 | E155: 2 | F155: 1 | G155: 10 | H155: 1 | I155: 4 | J155: 0.21 | K155: 94 | O155: 0.01256120205
A156: 0 | B156: 0 | C156: 0 | D156: 26 | E156: 1 | F156: 1 | G156: 15 | H156: 2 | I156: 4 | J156: 10.06 | K156: 241.62 | O156: 0.01267635822
A157: 1 | B157: 0 | C157: 0 | D157: 73 | E157: 2 | F157: 0 | G157: 9 | H157: 2 | I157: 4 | J157: 0.41 | K157: 145.11 | O157: 0.01272577047
A158: 1 | B158: 0 | C158: 0 | D158: 90 | E158: 1 | F158: 1 | G158: 9 | H158: 3 | I158: 4 | J158: 9.5 | K158: 359.98 | O158: 0.01284348965
A159: 0 | B159: 0 | C159: 0 | D159: 46 | E159: 1 | F159: 0 | G159: 9 | H159: 4 | I159: 3 | J159: 9.95 | K159: 247.87 | O159: 0.0131649971
A160: 1 | B160: 0 | C160: 0 | D160: 69 | E160: 2 | F160: 1 | G160: 8 | H160: 0 | I160: 4 | J160: 4.37 | K160: 248.18 | O160: 0.01317024231
A161: 0 | B161: 0 | C161: 0 | D161: 46 | E161: 1 | F161: 1 | G161: 10 | H161: 1 | I161: 4 | J161: 0.5 | K161: 61.69 | O161: 0.01335638762
A162: 1 | B162: 0 | C162: 0 | D162: 58 | E162: 1 | F162: 0 | G162: 9 | H162: 3 | I162: 4 | J162: 9.33 | K162: 83.88 | O162: 0.0133895874
A163: 0 | B163: 0 | C163: 0 | D163: 30 | E163: 2 | F163: 0 | G163: 8 | H163: 4 | I163: 1 | J163: 10.05 | K163: 181.82 | O163: 0.01359158754
A164: 0 | B164: 0 | C164: 0 | D164: 46 | E164: 1 | F164: 1 | G164: 14 | H164: 3 | I164: 4 | J164: 0 | K164: 249.32 | O164: 0.0135999918
A165: 0 | B165: 0 | C165: 0 | D165: 48 | E165: 1 | F165: 1 | G165: 12 | H165: 4 | I165: 0 | J165: 0 | K165: 287.39 | O165: 0.01370203495
A166: 0 | B166: 0 | C166: 0 | D166: 28 | E166: 1 | F166: 0 | G166: 13 | H166: 4 | I166: 4 | J166: 9.29 | K166: 250.55 | O166: 0.01374751329
A167: 1 | B167: 0 | C167: 0 | D167: 52 | E167: 1 | F167: 1 | G167: 9 | H167: 1 | I167: 2 | J167: 0 | K167: 98.48 | O167: 0.01383006573
A168: 1 | B168: 0 | C168: 0 | D168: 32 | E168: 2 | F168: 0 | G168: 13 | H168: 1 | I168: 4 | J168: 0 | K168: 249.37 | O168: 0.01389437914
A169: 0 | B169: 0 | C169: 0 | D169: 60 | E169: 1 | G169: 8 | H169: 4 | I169: 4 | J169: 9.37 | K169: 250.05 | O169: 0.01391345263
A170: 1 | B170: 0 | C170: 0 | D170: 78 | E170: 2 | F170: 0 | G170: 11 | H170: 4 | I170: 4 | J170: 10.08 | K170: 255.69 | O170: 0.01400101185
A171: 0 | B171: 0 | C171: 0 | D171: 85 | E171: 1 | F171: 0 | G171: 12 | H171: 1 | I171: 4 | J171: 9.56 | K171: 251.84 | O171: 0.01404446363
A172: 1 | B172: 0 | C172: 0 | D172: 57 | E172: 2 | F172: 1 | G172: 10 | H172: 4 | I172: 4 | J172: 9.36 | K172: 189.4 | O172: 0.01413476467
A173: 1 | B173: 0 | C173: 0 | D173: 61 | E173: 1 | F173: 1 | G173: 10 | H173: 4 | I173: 3 | J173: 9.45 | K173: 250.95 | O173: 0.01436620951
A174: 0 | B174: 0 | C174: 0 | D174: 27 | E174: 1 | F174: 0 | G174: 10 | H174: 1 | I174: 4 | J174: 0 | K174: 79.38 | O174: 0.01446807384
A175: 1 | B175: 0 | C175: 0 | D175: 69 | E175: 1 | F175: 0 | G175: 10 | H175: 4 | I175: 2 | J175: 9.69 | K175: 67.04 | O175: 0.01468014717
A176: 1 | B176: 0 | C176: 0 | D176: 49 | E176: 2 | F176: 0 | G176: 10 | H176: 0 | I176: 3 | J176: 2.02 | K176: 71.11 | O176: 0.01494055986
A177: 0 | B177: 0 | C177: 0 | D177: 35 | E177: 2 | F177: 0 | G177: 8 | H177: 0 | I177: 4 | J177: 9.92 | K177: 256.31 | O177: 0.01496636868
A178: 1 | B178: 0 | C178: 0 | D178: 82 | E178: 1 | F178: 0 | G178: 12 | H178: 0 | I178: 4 | J178: 9.69 | K178: 172.35 | O178: 0.01497578621
A179: 1 | B179: 0 | C179: 0 | D179: 42 | E179: 2 | F179: 1 | G179: 14 | H179: 4 | I179: 4 | J179: 0 | K179: 253.9 | O179: 0.01512247324
A180: 0 | B180: 0 | C180: 0 | D180: 42 | E180: 1 | F180: 1 | G180: 10 | H180: 0 | I180: 3 | J180: 9.93 | K180: 282.91 | O180: 0.01523286104
A181: 0 | B181: 0 | C181: 0 | D181: 23 | E181: 2 | F181: 0 | G181: 11 | H181: 4 | I181: 1 | J181: 0.53 | K181: 253.98 | O181: 0.01543521881
A182: 1 | B182: 0 | C182: 0 | D182: 38 | E182: 2 | F182: 1 | G182: 11 | H182: 3 | I182: 3 | J182: 13.68 | K182: 304.21 | O182: 0.01559835672
A183: 0 | B183: 0 | C183: 0 | D183: 46 | E183: 2 | F183: 0 | G183: 8 | H183: 1 | I183: 0 | J183: 0 | K183: 248.74 | O183: 0.01576977968
A184: 1 | B184: 0 | C184: 0 | D184: 64 | E184: 2 | F184: 0 | G184: 9 | H184: 4 | I184: 4 | J184: 15.36 | K184: 195.94 | O184: 0.01596099138
A185: 1 | B185: 0 | C185: 0 | D185: 72 | E185: 1 | F185: 1 | G185: 10 | H185: 0 | I185: 1 | J185: 9.17 | K185: 243.71 | O185: 0.01598340273
A186: 0 | B186: 0 | C186: 0 | D186: 23 | E186: 1 | F186: 0 | G186: 11 | H186: 3 | I186: 4 | J186: 0 | K186: 192.86 | O186: 0.01652473211
A187: 1 | B187: 0 | C187: 0 | D187: 61 | E187: 2 | F187: 0 | G187: 13 | H187: 1 | I187: 2 | J187: 9.34 | K187: 64.54 | O187: 0.01653695107
A188: 1 | B188: 0 | C188: 0 | D188: 51 | E188: 1 | F188: 1 | G188: 13 | H188: 1 | I188: 2 | J188: -0.02 | K188: 189 | O188: 0.01655495167
A189: 0 | B189: 0 | C189: 0 | D189: 66 | E189: 2 | F189: 1 | G189: 15 | H189: 0 | I189: 4 | J189: 9.42 | K189: 251.7 | O189: 0.01667547226
A190: 1 | B190: 0 | C190: 0 | D190: 37 | E190: 2 | F190: 0 | G190: 8 | H190: 3 | I190: 1 | J190: 9.44 | K190: 255.06 | O190: 0.01674896479
A191: 0 | B191: 0 | C191: 0 | D191: 53 | E191: 2 | F191: 0 | G191: 13 | H191: 1 | I191: 1 | J191: 3.38 | K191: 89.26 | O191: 0.01678842306
A192: 1 | B192: 0 | C192: 0 | D192: 29 | E192: 1 | F192: 0 | G192: 12 | H192: 3 | I192: 4 | J192: 0.73 | K192: 267.63 | O192: 0.01679509878
A193: 1 | B193: 0 | C193: 0 | D193: 64 | E193: 2 | F193: 1 | G193: 12 | H193: 3 | I193: 2 | J193: 14.94 | K193: 436.72 | O193: 0.01682376862
A194: 1 | B194: 0 | C194: 0 | D194: 51 | E194: 1 | F194: 0 | G194: 11 | H194: 1 | I194: 4 | J194: 1.93 | K194: 77.6 | O194: 0.01682734489
A195: 1 | B195: 0 | C195: 0 | D195: 51 | E195: 1 | F195: 0 | G195: 8 | H195: 2 | I195: 4 | J195: 10.05 | K195: 95.22 | O195: 0.0170378685
A196: 1 | B196: 0 | C196: 0 | D196: 41 | E196: 2 | F196: 0 | G196: 13 | H196: 4 | I196: 4 | J196: 0 | K196: 193.38 | O196: 0.0172816515
A197: 1 | B197: 0 | C197: 0 | D197: 40 | E197: 2 | F197: 1 | G197: 8 | H197: 1 | I197: 0 | J197: 9.63 | K197: 108.4 | O197: 0.01736140251
A198: 1 | B198: 0 | C198: 0 | D198: 34 | E198: 2 | F198: 1 | G198: 8 | H198: 1 | I198: 1 | J198: 9.55 | K198: 172.49 | O198: 0.01750028133
A199: 1 | B199: 0 | C199: 0 | D199: 74 | E199: 1 | F199: 0 | G199: 10 | H199: 1 | I199: 3 | J199: 9.15 | K199: 254.81 | O199: 0.01757311821
A200: 0 | B200: 0 | C200: 0 | D200: 29 | E200: 2 | F200: 1 | G200: 9 | H200: 1 | I200: 4 | J200: 9.25 | K200: 909.94 | O200: 0.0175948143
... 4300 more rows

Sheet chartdata
B1: Age | C1: Household Size | D1: Are newly registered | E1: Live in Iowa | F1: From a competitive district | G1: Voted in 2000 | H1: Voted in 1998 | I1: Are Female
A2: treatment | B2: age | C2: persons | D2: newreg | E2: state | F2: competiv | G2: vote00 | H2: vote98 | I2: female
A3: 0 | B3: 59 | C3: 1.8 | D3: 0.4 | E3: 9.8 | F3: 2.2 | G3: 3.8 | H3: 13.64 | I3: 104.324 | K3: =CHITEST(D3:I3,D4:I4) -> 2.578811654e-05
A4: 1 | B4: 55.6 | C4: 1.6 | D4: 0.6 | E4: 9.8 | F4: 2.2 | G4: 2.4 | H4: 8.024 | I4: 167.7
A5: 2 | B5: 0.7675568117 | C5: 0.5454243097 | D5: 0.579584 | E5: 1 | F5: 1 | G5: 0.1618338923 | H5: 0.4227102729 | I5: 0.08410788677
A6: actual | B6: =AVERAGE(control!D2:D10002) -> 53.11978802 | C6: =AVERAGE(control!E2:E10002) -> 1.518448155 | D6: =AVERAGE(control!F2:F10002) -> 0.4888732959 | E6: =AVERAGE(control!G2:G10002) -> 11.32081706 | F6: =AVERAGE(control!H2:H10002) -> 2.420957904 | G6: =AVERAGE(control!I2:I10002) -> 2.780700874 | H6: =AVERAGE(control!J2:J10002) -> 9.733091691 | I6: =AVERAGE(control!K2:K10002) -> 249.1920538
B8: 18 | C8: =B8+5 -> 23 | D8: =C8+5 -> 28 | E8: 33 | F8: 38 | G8: 43 | H8: 48 | I8: 53 | J8: 58 | K8: 63 | L8: 68 | M8: 73
A9: treatment | B9: 22 | C9: =B9+5 -> 27 | D9: =C9+5 -> 32 | E9: 37 | F9: 42 | G9: 47 | H9: 52 | I9: 57 | J9: 62 | K9: 67 | L9: 72 | M9: 77
A10: 0
A11: 1
A12: 2 | D12: =COUNTIFS(OFFSET(control!$G$2,0,0,$A$15), ">=" & $C15,control!$O:$O,0) -> 
C14: Age | D14: Control | E14: Treat | F14: Actual | H14: readlevel | I14: Control | J14: Treat | K14: Actual | M14: FBT base | N14: Control | O14: Treat | P14: Actual
A15: 10 | C15: 0 | D15: =COUNTIFS(OFFSET(control!$G$2,0,0,$A$15),chartdata!$C15,OFFSET(control!$O$2,0,0,$A$15),0) -> 0 | E15: =COUNTIFS(OFFSET(control!$G$2,0,0,$A$15),chartdata!$C15,OFFSET(control!$O$2,0,0,$A$15),1) -> 0 | F15: =ROUND(G15*(($A$15/2)/59972),2) -> 0 | G15: 9 | H15: 0 | I15: =COUNTIFS(OFFSET(control!$H$2,0,0,$A$15),chartdata!$C15,OFFSET(control!$O$2,0,0,$A$15),0) -> 1 | J15: =COUNTIFS(OFFSET(control!$H$2,0,0,$A$15),chartdata!$C15,OFFSET(control!$O$2,0,0,$A$15),1) -> 1 | K15: =ROUND(L15*(($A$15/2)/59972),2) -> 0.74 | L15: 8918 | M15: 0 | N15: =COUNTIFS(OFFSET(control!$J$2,0,0,$A$15), ">=" & chartdata!$M15,OFFSET(control!$J$2,0,0,$A$15), "<" & chartdata!$M16,OFFSET(control!$O$2,0,0,$A$15),0) -> 1 | O15: =COUNTIFS(OFFSET(control!$J$2,0,0,$A$15), ">=" & chartdata!$M15,OFFSET(control!$J$2,0,0,$A$15), "<" & chartdata!$M16,OFFSET(control!$O$2,0,0,$A$15),1) -> 1 | P15: =ROUND(Q15*(($A$15/2)/59972),2) -> 1.6 | Q15: 19184
C16: =C15+1 -> 1 | D16: =COUNTIFS(OFFSET(control!$G$2,0,0,$A$15),chartdata!$C16,OFFSET(control!$O$2,0,0,$A$15),0) -> 0 | E16: =COUNTIFS(OFFSET(control!$G$2,0,0,$A$15),chartdata!$C16,OFFSET(control!$O$2,0,0,$A$15),1) -> 0 | F16: =ROUND(G16*(($A$15/2)/59972),2) -> 0 | G16: 8 | H16: =H15+1 -> 1 | I16: =COUNTIFS(OFFSET(control!$H$2,0,0,$A$15),chartdata!$C16,OFFSET(control!$O$2,0,0,$A$15),0) -> 1 | J16: =COUNTIFS(OFFSET(control!$H$2,0,0,$A$15),chartdata!$C16,OFFSET(control!$O$2,0,0,$A$15),1) -> 1 | K16: =ROUND(L16*(($A$15/2)/59972),2) -> 1.12 | L16: 13404 | M16: 5 | N16: =COUNTIFS(OFFSET(control!$J$2,0,0,$A$15), ">=" & chartdata!$M16,OFFSET(control!$J$2,0,0,$A$15), "<" & chartdata!$M17,OFFSET(control!$O$2,0,0,$A$15),0) -> 2 | O16: =COUNTIFS(OFFSET(control!$J$2,0,0,$A$15), ">=" & chartdata!$M16,OFFSET(control!$J$2,0,0,$A$15), "<" & chartdata!$M17,OFFSET(control!$O$2,0,0,$A$15),1) -> 3 | P16: =ROUND(Q16*(($A$15/2)/59972),2) -> 2.06 | Q16: 24711
C17: 2 | D17: =COUNTIFS(OFFSET(control!$G$2,0,0,$A$15),chartdata!$C17,OFFSET(control!$O$2,0,0,$A$15),0) -> 0 | E17: =COUNTIFS(OFFSET(control!$G$2,0,0,$A$15),chartdata!$C17,OFFSET(control!$O$2,0,0,$A$15),1) -> 0 | F17: 0 | G17: 37 | H17: =H16+1 -> 2 | I17: =COUNTIFS(OFFSET(control!$H$2,0,0,$A$15),chartdata!$C17,OFFSET(control!$O$2,0,0,$A$15),0) -> 0 | J17: =COUNTIFS(OFFSET(control!$H$2,0,0,$A$15),chartdata!$C17,OFFSET(control!$O$2,0,0,$A$15),1) -> 0 | K17: 0.39 | L17: 4674 | M17: 10 | N17: =COUNTIFS(OFFSET(control!$J$2,0,0,$A$15), ">=" & chartdata!$M17,OFFSET(control!$J$2,0,0,$A$15), "<" & chartdata!$M18,OFFSET(control!$O$2,0,0,$A$15),0) -> 1 | O17: =COUNTIFS(OFFSET(control!$J$2,0,0,$A$15), ">=" & chartdata!$M17,OFFSET(control!$J$2,0,0,$A$15), "<" & chartdata!$M18,OFFSET(control!$O$2,0,0,$A$15),1) -> 1 | P17: 0.46 | Q17: 5550
C18: 3 | D18: =COUNTIFS(OFFSET(control!$G$2,0,0,$A$15),chartdata!$C18,OFFSET(control!$O$2,0,0,$A$15),0) -> 0 | E18: =COUNTIFS(OFFSET(control!$G$2,0,0,$A$15),chartdata!$C18,OFFSET(control!$O$2,0,0,$A$15),1) -> 0 | F18: 0 | G18: 16 | H18: 3 | I18: =COUNTIFS(OFFSET(control!$H$2,0,0,$A$15),chartdata!$C18,OFFSET(control!$O$2,0,0,$A$15),0) -> 1 | J18: =COUNTIFS(OFFSET(control!$H$2,0,0,$A$15),chartdata!$C18,OFFSET(control!$O$2,0,0,$A$15),1) -> 3 | K18: 0.77 | L18: 9217 | M18: 15 | N18: =COUNTIFS(OFFSET(control!$J$2,0,0,$A$15), ">=" & chartdata!$M18,OFFSET(control!$J$2,0,0,$A$15), "<" & chartdata!$M19,OFFSET(control!$O$2,0,0,$A$15),0) -> 0 | O18: =COUNTIFS(OFFSET(control!$J$2,0,0,$A$15), ">=" & chartdata!$M18,OFFSET(control!$J$2,0,0,$A$15), "<" & chartdata!$M19,OFFSET(control!$O$2,0,0,$A$15),1) -> 0 | P18: 0.16 | Q18: 1902
C19: 4 | D19: =COUNTIFS(OFFSET(control!$G$2,0,0,$A$15),chartdata!$C19,OFFSET(control!$O$2,0,0,$A$15),0) -> 0 | E19: =COUNTIFS(OFFSET(control!$G$2,0,0,$A$15),chartdata!$C19,OFFSET(control!$O$2,0,0,$A$15),1) -> 1 | F19: 0 | G19: 44 | H19: 4 | I19: =COUNTIFS(OFFSET(control!$H$2,0,0,$A$15),chartdata!$C19,OFFSET(control!$O$2,0,0,$A$15),0) -> 1 | J19: =COUNTIFS(OFFSET(control!$H$2,0,0,$A$15),chartdata!$C19,OFFSET(control!$O$2,0,0,$A$15),1) -> 1 | K19: 1.98 | L19: 23759 | M19: 20 | N19: =COUNTIFS(OFFSET(control!$J$2,0,0,$A$15), ">=" & chartdata!$M19,OFFSET(control!$J$2,0,0,$A$15), "<" & chartdata!$M20,OFFSET(control!$O$2,0,0,$A$15),0) -> 0 | O19: =COUNTIFS(OFFSET(control!$J$2,0,0,$A$15), ">=" & chartdata!$M19,OFFSET(control!$J$2,0,0,$A$15), "<" & chartdata!$M20,OFFSET(control!$O$2,0,0,$A$15),1) -> 0 | P19: 0.17 | Q19: 2035
C20: 5 | D20: =COUNTIFS(OFFSET(control!$G$2,0,0,$A$15),chartdata!$C20,OFFSET(control!$O$2,0,0,$A$15),0) -> 0 | E20: =COUNTIFS(OFFSET(control!$G$2,0,0,$A$15),chartdata!$C20,OFFSET(control!$O$2,0,0,$A$15),1) -> 0 | F20: 0 | G20: 11 | M20: =M19+5 -> 25 | N20: =COUNTIFS(OFFSET(control!$J$2,0,0,$A$15), ">=" & chartdata!$M20,OFFSET(control!$J$2,0,0,$A$15), "<" & chartdata!$M21,OFFSET(control!$O$2,0,0,$A$15),0) -> 0 | O20: =COUNTIFS(OFFSET(control!$J$2,0,0,$A$15), ">=" & chartdata!$M20,OFFSET(control!$J$2,0,0,$A$15), "<" & chartdata!$M21,OFFSET(control!$O$2,0,0,$A$15),1) -> 0 | P20: 0.15 | Q20: 1856
C21: 6 | D21: =COUNTIFS(OFFSET(control!$G$2,0,0,$A$15),chartdata!$C21,OFFSET(control!$O$2,0,0,$A$15),0) -> 0 | E21: =COUNTIFS(OFFSET(control!$G$2,0,0,$A$15),chartdata!$C21,OFFSET(control!$O$2,0,0,$A$15),1) -> 0 | F21: 0 | G21: 23 | M21: =M20+5 -> 30 | N21: =COUNTIFS(OFFSET(control!$J$2,0,0,$A$15), ">=" & chartdata!$M21,OFFSET(control!$J$2,0,0,$A$15), "<" & chartdata!$M22,OFFSET(control!$O$2,0,0,$A$15),0) -> 0 | O21: =COUNTIFS(OFFSET(control!$J$2,0,0,$A$15), ">=" & chartdata!$M21,OFFSET(control!$J$2,0,0,$A$15), "<" & chartdata!$M22,OFFSET(control!$O$2,0,0,$A$15),1) -> 0 | P21: 0.12 | Q21: 1489
C22: 7 | D22: =COUNTIFS(OFFSET(control!$G$2,0,0,$A$15),chartdata!$C22,OFFSET(control!$O$2,0,0,$A$15),0) -> 0 | E22: =COUNTIFS(OFFSET(control!$G$2,0,0,$A$15),chartdata!$C22,OFFSET(control!$O$2,0,0,$A$15),1) -> 0 | F22: 0.01 | G22: 160 | M22: 35 | N22: =COUNTIFS(OFFSET(control!$J$2,0,0,$A$15), ">=" & chartdata!$M22,OFFSET(control!$J$2,0,0,$A$15), "<" & chartdata!$M23,OFFSET(control!$O$2,0,0,$A$15),0) -> 0 | O22: =COUNTIFS(OFFSET(control!$J$2,0,0,$A$15), ">=" & chartdata!$M22,OFFSET(control!$J$2,0,0,$A$15), "<" & chartdata!$M23,OFFSET(control!$O$2,0,0,$A$15),1) -> 1 | P22: 0.08 | Q22: 939
C23: 8 | D23: =COUNTIFS(OFFSET(control!$G$2,0,0,$A$15),chartdata!$C23,OFFSET(control!$O$2,0,0,$A$15),0) -> 1 | E23: =COUNTIFS(OFFSET(control!$G$2,0,0,$A$15),chartdata!$C23,OFFSET(control!$O$2,0,0,$A$15),1) -> 0 | F23: 0.66 | G23: 7970 | I23: =ABS((I15-K15)/K15) -> 0.3513513514 | J23: =ABS((J15-K15)/K15) -> 0.3513513514 | M23: 40 | N23: =COUNTIFS(OFFSET(control!$J$2,0,0,$A$15), ">=" & chartdata!$M23,OFFSET(control!$J$2,0,0,$A$15), "<" & chartdata!$M24,OFFSET(control!$O$2,0,0,$A$15),0) -> 0 | O23: =COUNTIFS(OFFSET(control!$J$2,0,0,$A$15), ">=" & chartdata!$M23,OFFSET(control!$J$2,0,0,$A$15), "<" & chartdata!$M24,OFFSET(control!$O$2,0,0,$A$15),1) -> 0 | P23: 0.04 | Q23: 517
C24: 9 | D24: =COUNTIFS(OFFSET(control!$G$2,0,0,$A$15),chartdata!$C24,OFFSET(control!$O$2,0,0,$A$15),0) -> 0 | E24: =COUNTIFS(OFFSET(control!$G$2,0,0,$A$15),chartdata!$C24,OFFSET(control!$O$2,0,0,$A$15),1) -> 2 | F24: 0.74 | G24: 8870 | I24: =ABS((I16-K16)/K16) -> 0.1071428571 | J24: =ABS((J16-K16)/K16) -> 0.1071428571 | M24: 45 | N24: =COUNTIFS(OFFSET(control!$J$2,0,0,$A$15), ">=" & chartdata!$M24,OFFSET(control!$J$2,0,0,$A$15), "<" & chartdata!$M25,OFFSET(control!$O$2,0,0,$A$15),0) -> 0 | O24: =COUNTIFS(OFFSET(control!$J$2,0,0,$A$15), ">=" & chartdata!$M24,OFFSET(control!$J$2,0,0,$A$15), "<" & chartdata!$M25,OFFSET(control!$O$2,0,0,$A$15),1) -> 0 | P24: 0.03 | Q24: 313
C25: 10 | D25: =COUNTIFS(OFFSET(control!$G$2,0,0,$A$15),chartdata!$C25,OFFSET(control!$O$2,0,0,$A$15),0) -> 1 | E25: =COUNTIFS(OFFSET(control!$G$2,0,0,$A$15),chartdata!$C25,OFFSET(control!$O$2,0,0,$A$15),1) -> 1 | F25: 0.57 | G25: 6870 | I25: 1 | J25: 1 | M25: 50 | N25: =COUNTIFS(OFFSET(control!$J$2,0,0,$A$15), ">=" & chartdata!$M25,OFFSET(control!$J$2,0,0,$A$15), "<" & chartdata!$M26,OFFSET(control!$O$2,0,0,$A$15),0) -> 0 | O25: =COUNTIFS(OFFSET(control!$J$2,0,0,$A$15), ">=" & chartdata!$M25,OFFSET(control!$J$2,0,0,$A$15), "<" & chartdata!$M26,OFFSET(control!$O$2,0,0,$A$15),1) -> 0 | P25: 0.02 | Q25: 208
C26: 11 | D26: =COUNTIFS(OFFSET(control!$G$2,0,0,$A$15),chartdata!$C26,OFFSET(control!$O$2,0,0,$A$15),0) -> 2 | E26: =COUNTIFS(OFFSET(control!$G$2,0,0,$A$15),chartdata!$C26,OFFSET(control!$O$2,0,0,$A$15),1) -> 1 | F26: 0.76 | G26: 9077 | I26: 0.2987012987 | J26: 2.896103896 | M26: 55 | N26: =COUNTIFS(OFFSET(control!$J$2,0,0,$A$15), ">=" & chartdata!$M26,OFFSET(control!$J$2,0,0,$A$15), "<" & chartdata!$M27,OFFSET(control!$O$2,0,0,$A$15),0) -> 0 | O26: =COUNTIFS(OFFSET(control!$J$2,0,0,$A$15), ">=" & chartdata!$M26,OFFSET(control!$J$2,0,0,$A$15), "<" & chartdata!$M27,OFFSET(control!$O$2,0,0,$A$15),1) -> 0 | P26: 0.01 | Q26: 124
C27: 12 | D27: =COUNTIFS(OFFSET(control!$G$2,0,0,$A$15),chartdata!$C27,OFFSET(control!$O$2,0,0,$A$15),0) -> 0 | E27: =COUNTIFS(OFFSET(control!$G$2,0,0,$A$15),chartdata!$C27,OFFSET(control!$O$2,0,0,$A$15),1) -> 0 | F27: 0.44 | G27: 5313 | I27: 0.4949494949 | J27: 0.4949494949 | M27: 60 | N27: =COUNTIFS(OFFSET(control!$J$2,0,0,$A$15), ">=" & chartdata!$M27,OFFSET(control!$J$2,0,0,$A$15), "<" & chartdata!$M28,OFFSET(control!$O$2,0,0,$A$15),0) -> 0 | O27: =COUNTIFS(OFFSET(control!$J$2,0,0,$A$15), ">=" & chartdata!$M27,OFFSET(control!$J$2,0,0,$A$15), "<" & chartdata!$M28,OFFSET(control!$O$2,0,0,$A$15),1) -> 0 | P27: 0.01 | Q27: 105
C28: 13 | D28: =COUNTIFS(OFFSET(control!$G$2,0,0,$A$15),chartdata!$C28,OFFSET(control!$O$2,0,0,$A$15),0) -> 0 | E28: =COUNTIFS(OFFSET(control!$G$2,0,0,$A$15),chartdata!$C28,OFFSET(control!$O$2,0,0,$A$15),1) -> 0 | F28: 0.69 | G28: 8300 | M28: 65 | N28: =COUNTIFS(OFFSET(control!$J$2,0,0,$A$15), ">=" & chartdata!$M28,OFFSET(control!$J$2,0,0,$A$15), "<" & chartdata!$M29,OFFSET(control!$O$2,0,0,$A$15),0) -> 0 | O28: =COUNTIFS(OFFSET(control!$J$2,0,0,$A$15), ">=" & chartdata!$M28,OFFSET(control!$J$2,0,0,$A$15), "<" & chartdata!$M29,OFFSET(control!$O$2,0,0,$A$15),1) -> 0 | P28: 0 | Q28: 23
C29: 14 | D29: =COUNTIFS(OFFSET(control!$G$2,0,0,$A$15),chartdata!$C29,OFFSET(control!$O$2,0,0,$A$15),0) -> 0 | E29: =COUNTIFS(OFFSET(control!$G$2,0,0,$A$15),chartdata!$C29,OFFSET(control!$O$2,0,0,$A$15),1) -> 0 | F29: 0.55 | G29: 6581 | M29: 70 | N29: =COUNTIFS(OFFSET(control!$J$2,0,0,$A$15), ">=" & chartdata!$M29,OFFSET(control!$J$2,0,0,$A$15), "<" & chartdata!$M30,OFFSET(control!$O$2,0,0,$A$15),0) -> 0 | O29: =COUNTIFS(OFFSET(control!$J$2,0,0,$A$15), ">=" & chartdata!$M29,OFFSET(control!$J$2,0,0,$A$15), "<" & chartdata!$M30,OFFSET(control!$O$2,0,0,$A$15),1) -> 0 | P29: 0 | Q29: 25
C30: 15 | D30: =COUNTIFS(OFFSET(control!$G$2,0,0,$A$15),chartdata!$C30,OFFSET(control!$O$2,0,0,$A$15),0) -> 0 | E30: =COUNTIFS(OFFSET(control!$G$2,0,0,$A$15),chartdata!$C30,OFFSET(control!$O$2,0,0,$A$15),1) -> 1 | F30: 0.54 | G30: 6465 | M30: 75 | N30: =COUNTIFS(OFFSET(control!$J$2,0,0,$A$15), ">=" & chartdata!$M30,OFFSET(control!$J$2,0,0,$A$15), "<" & chartdata!$M31,OFFSET(control!$O$2,0,0,$A$15),0) -> 0 | O30: =COUNTIFS(OFFSET(control!$J$2,0,0,$A$15), ">=" & chartdata!$M30,OFFSET(control!$J$2,0,0,$A$15), "<" & chartdata!$M31,OFFSET(control!$O$2,0,0,$A$15),1) -> 0 | P30: 0 | Q30: 13
C31: 16 | D31: =COUNTIFS(OFFSET(control!$G$2,0,0,$A$15),chartdata!$C31,OFFSET(control!$O$2,0,0,$A$15),0) -> 0 | E31: =COUNTIFS(OFFSET(control!$G$2,0,0,$A$15),chartdata!$C31,OFFSET(control!$O$2,0,0,$A$15),1) -> 0 | F31: 0.01 | G31: 102 | M31: 80 | N31: =COUNTIFS(OFFSET(control!$J$2,0,0,$A$15), ">=" & chartdata!$M31,OFFSET(control!$J$2,0,0,$A$15), "<" & chartdata!$M32,OFFSET(control!$O$2,0,0,$A$15),0) -> 0 | O31: =COUNTIFS(OFFSET(control!$J$2,0,0,$A$15), ">=" & chartdata!$M31,OFFSET(control!$J$2,0,0,$A$15), "<" & chartdata!$M32,OFFSET(control!$O$2,0,0,$A$15),1) -> 0 | P31: 0 | Q31: 22
C32: 17 | D32: =COUNTIFS(OFFSET(control!$G$2,0,0,$A$15),chartdata!$C32,OFFSET(control!$O$2,0,0,$A$15),0) -> 0 | E32: =COUNTIFS(OFFSET(control!$G$2,0,0,$A$15),chartdata!$C32,OFFSET(control!$O$2,0,0,$A$15),1) -> 0 | F32: 0 | G32: 37 | M32: 85 | N32: =COUNTIFS(OFFSET(control!$J$2,0,0,$A$15), ">=" & chartdata!$M32,OFFSET(control!$J$2,0,0,$A$15), "<" & chartdata!$M33,OFFSET(control!$O$2,0,0,$A$15),0) -> 0 | O32: =COUNTIFS(OFFSET(control!$J$2,0,0,$A$15), ">=" & chartdata!$M32,OFFSET(control!$J$2,0,0,$A$15), "<" & chartdata!$M33,OFFSET(control!$O$2,0,0,$A$15),1) -> 0 | P32: 0 | Q32: 0
C33: 18 | D33: =COUNTIFS(OFFSET(control!$G$2,0,0,$A$15),chartdata!$C33,OFFSET(control!$O$2,0,0,$A$15),0) -> 0 | E33: =COUNTIFS(OFFSET(control!$G$2,0,0,$A$15),chartdata!$C33,OFFSET(control!$O$2,0,0,$A$15),1) -> 0 | F33: 0 | G33: 24
D37: =IF($F15=0,0,ABS((D15-$F15)/$F15)) -> 0 | E37: =IF($F15=0,0,ABS((E15-$F15)/$F15)) -> 0
D38: =IF($F16=0,0,ABS((D16-$F16)/$F16)) -> 0 | E38: 0 | M38: FBT base | N38: Control | O38: Treat | P38: Actual
D39: 0 | E39: 0 | M39: 0 | N39: =COUNTIFS(OFFSET(control!$K$2,0,0,$A$15), ">=" & chartdata!$M39,OFFSET(control!$K$2,0,0,$A$15), "<" & chartdata!$M40,OFFSET(control!$O$2,0,0,$A$15),0) -> 1 | O39: =COUNTIFS(OFFSET(control!$K$2,0,0,$A$15), ">=" & chartdata!$M39,OFFSET(control!$K$2,0,0,$A$15), "<" & chartdata!$M40,OFFSET(control!$O$2,0,0,$A$15),1) -> 2 | P39: =ROUND(Q39*(($A$15/2)/59972),2) -> 0.45 | Q39: 5369
D40: 0 | E40: 0 | M40: 100 | N40: =COUNTIFS(OFFSET(control!$K$2,0,0,$A$15), ">=" & chartdata!$M40,OFFSET(control!$K$2,0,0,$A$15), "<" & chartdata!$M41,OFFSET(control!$O$2,0,0,$A$15),0) -> 2 | O40: =COUNTIFS(OFFSET(control!$K$2,0,0,$A$15), ">=" & chartdata!$M40,OFFSET(control!$K$2,0,0,$A$15), "<" & chartdata!$M41,OFFSET(control!$O$2,0,0,$A$15),1) -> 3 | P40: =ROUND(Q40*(($A$15/2)/59972),2) -> 1.05 | Q40: 12581
D41: 0 | E41: 0 | M41: =M40+100 -> 200 | N41: =COUNTIFS(OFFSET(control!$K$2,0,0,$A$15), ">=" & chartdata!$M41,OFFSET(control!$K$2,0,0,$A$15), "<" & chartdata!$M42,OFFSET(control!$O$2,0,0,$A$15),0) -> 1 | O41: =COUNTIFS(OFFSET(control!$K$2,0,0,$A$15), ">=" & chartdata!$M41,OFFSET(control!$K$2,0,0,$A$15), "<" & chartdata!$M42,OFFSET(control!$O$2,0,0,$A$15),1) -> 1 | P41: 2.74 | Q41: 32869
D42: 0 | E42: 0 | M42: =M41+100 -> 300 | N42: =COUNTIFS(OFFSET(control!$K$2,0,0,$A$15), ">=" & chartdata!$M42,OFFSET(control!$K$2,0,0,$A$15), "<" & chartdata!$M43,OFFSET(control!$O$2,0,0,$A$15),0) -> 0 | O42: =COUNTIFS(OFFSET(control!$K$2,0,0,$A$15), ">=" & chartdata!$M42,OFFSET(control!$K$2,0,0,$A$15), "<" & chartdata!$M43,OFFSET(control!$O$2,0,0,$A$15),1) -> 0 | P42: 0.37 | Q42: 4425
D43: 0 | E43: 0 | M43: 400 | N43: =COUNTIFS(OFFSET(control!$K$2,0,0,$A$15), ">=" & chartdata!$M43,OFFSET(control!$K$2,0,0,$A$15), "<" & chartdata!$M44,OFFSET(control!$O$2,0,0,$A$15),0) -> 0 | O43: =COUNTIFS(OFFSET(control!$K$2,0,0,$A$15), ">=" & chartdata!$M43,OFFSET(control!$K$2,0,0,$A$15), "<" & chartdata!$M44,OFFSET(control!$O$2,0,0,$A$15),1) -> 0 | P43: 0.16 | Q43: 1868
D44: 1 | E44: 1 | M44: 500 | N44: =COUNTIFS(OFFSET(control!$K$2,0,0,$A$15), ">=" & chartdata!$M44,OFFSET(control!$K$2,0,0,$A$15), "<" & chartdata!$M45,OFFSET(control!$O$2,0,0,$A$15),0) -> 0 | O44: =COUNTIFS(OFFSET(control!$K$2,0,0,$A$15), ">=" & chartdata!$M44,OFFSET(control!$K$2,0,0,$A$15), "<" & chartdata!$M45,OFFSET(control!$O$2,0,0,$A$15),1) -> 0 | P44: 0.09 | Q44: 1050
D45: 0.5151515152 | E45: 1 | M45: 600 | N45: =COUNTIFS(OFFSET(control!$K$2,0,0,$A$15), ">=" & chartdata!$M45,OFFSET(control!$K$2,0,0,$A$15), "<" & chartdata!$M46,OFFSET(control!$O$2,0,0,$A$15),0) -> 0 | O45: =COUNTIFS(OFFSET(control!$K$2,0,0,$A$15), ">=" & chartdata!$M45,OFFSET(control!$K$2,0,0,$A$15), "<" & chartdata!$M46,OFFSET(control!$O$2,0,0,$A$15),1) -> 0 | P45: 0.05 | Q45: 567
D46: 1 | E46: 1.702702703 | M46: 700 | N46: =COUNTIFS(OFFSET(control!$K$2,0,0,$A$15), ">=" & chartdata!$M46,OFFSET(control!$K$2,0,0,$A$15), "<" & chartdata!$M47,OFFSET(control!$O$2,0,0,$A$15),0) -> 0 | O46: =COUNTIFS(OFFSET(control!$K$2,0,0,$A$15), ">=" & chartdata!$M46,OFFSET(control!$K$2,0,0,$A$15), "<" & chartdata!$M47,OFFSET(control!$O$2,0,0,$A$15),1) -> 0 | P46: 0.04 | Q46: 443
D47: 0.7543859649 | E47: 0.7543859649 | M47: 800 | N47: =COUNTIFS(OFFSET(control!$K$2,0,0,$A$15), ">=" & chartdata!$M47,OFFSET(control!$K$2,0,0,$A$15), "<" & chartdata!$M48,OFFSET(control!$O$2,0,0,$A$15),0) -> 0 | O47: =COUNTIFS(OFFSET(control!$K$2,0,0,$A$15), ">=" & chartdata!$M47,OFFSET(control!$K$2,0,0,$A$15), "<" & chartdata!$M48,OFFSET(control!$O$2,0,0,$A$15),1) -> 0 | P47: 0.03 | Q47: 300
D48: 1.631578947 | E48: 0.3157894737 | M48: 900 | N48: =COUNTIFS(OFFSET(control!$K$2,0,0,$A$15), ">=" & chartdata!$M48,OFFSET(control!$K$2,0,0,$A$15), "<" & chartdata!$M49,OFFSET(control!$O$2,0,0,$A$15),0) -> 0 | O48: =COUNTIFS(OFFSET(control!$K$2,0,0,$A$15), ">=" & chartdata!$M48,OFFSET(control!$K$2,0,0,$A$15), "<" & chartdata!$M49,OFFSET(control!$O$2,0,0,$A$15),1) -> 0 | P48: 0.02 | Q48: 290
D49: 1 | E49: 1 | M49: 1000 | N49: =COUNTIFS(OFFSET(control!$K$2,0,0,$A$15), ">=" & chartdata!$M49,OFFSET(control!$K$2,0,0,$A$15), "<" & chartdata!$M50,OFFSET(control!$O$2,0,0,$A$15),0) -> 0 | O49: =COUNTIFS(OFFSET(control!$K$2,0,0,$A$15), ">=" & chartdata!$M49,OFFSET(control!$K$2,0,0,$A$15), "<" & chartdata!$M50,OFFSET(control!$O$2,0,0,$A$15),1) -> 0 | P49: 0.01 | Q49: 124
D50: 1 | E50: 1 | M50: 1100 | N50: =COUNTIFS(OFFSET(control!$K$2,0,0,$A$15), ">=" & chartdata!$M50,OFFSET(control!$K$2,0,0,$A$15), "<" & chartdata!$M51,OFFSET(control!$O$2,0,0,$A$15),0) -> 0 | O50: =COUNTIFS(OFFSET(control!$K$2,0,0,$A$15), ">=" & chartdata!$M50,OFFSET(control!$K$2,0,0,$A$15), "<" & chartdata!$M51,OFFSET(control!$O$2,0,0,$A$15),1) -> 0 | P50: 0 | Q50: 41
D51: 1 | E51: 1 | M51: 1200 | N51: =COUNTIFS(OFFSET(control!$K$2,0,0,$A$15), ">=" & chartdata!$M51,OFFSET(control!$K$2,0,0,$A$15), "<" & chartdata!$M52,OFFSET(control!$O$2,0,0,$A$15),0) -> 0 | O51: =COUNTIFS(OFFSET(control!$K$2,0,0,$A$15), ">=" & chartdata!$M51,OFFSET(control!$K$2,0,0,$A$15), "<" & chartdata!$M52,OFFSET(control!$O$2,0,0,$A$15),1) -> 0 | P51: 0 | Q51: 46
D52: 1 | E52: 0.8518518519 | M52: 1300 | N52: =COUNTIFS(OFFSET(control!$K$2,0,0,$A$15), ">=" & chartdata!$M52,OFFSET(control!$K$2,0,0,$A$15), "<" & chartdata!$M53,OFFSET(control!$O$2,0,0,$A$15),0) -> 0 | O52: =COUNTIFS(OFFSET(control!$K$2,0,0,$A$15), ">=" & chartdata!$M52,OFFSET(control!$K$2,0,0,$A$15), "<" & chartdata!$M53,OFFSET(control!$O$2,0,0,$A$15),1) -> 0 | P52: 0 | Q52: 26
D53: 1 | E53: 1 | M53: 1400 | N53: =COUNTIFS(OFFSET(control!$K$2,0,0,$A$15), ">=" & chartdata!$M53,OFFSET(control!$K$2,0,0,$A$15), "<" & chartdata!$M54,OFFSET(control!$O$2,0,0,$A$15),0) -> 0 | O53: =COUNTIFS(OFFSET(control!$K$2,0,0,$A$15), ">=" & chartdata!$M53,OFFSET(control!$K$2,0,0,$A$15), "<" & chartdata!$M54,OFFSET(control!$O$2,0,0,$A$15),1) -> 0 | P53: 0 | Q53: 0
D54: 0 | E54: 0
D55: 0 | E55: 0
